[Event "WSTCC-65 2024"]
[Site "Krakow"]
[Date "2024.07.06"]
[Round "5.11"]
[White "Ungure, Liga"]
[Black "Wenner, Tobias"]
[Result "1/2-1/2"]
[ECO "B40"]
[WhiteElo "1970"]
[BlackElo "2090"]
[Annotator "NA RC"]
[PlyCount "110"]
[EventDate "2024.07.01"]
[EventType "team-tourn"]
[EventCountry "POL"]
[SourceTitle "playchess.com"]
[Source "ChessBase"]
[SourceQuality "1"]
[TimeControl "40/5400+30:1800+30"]

1. e4 {[%emt 0:00:03]} c5 {[%emt 0:00:07]} 2. Nf3 {[%emt 0:00:05]} e6 {[%emt 0:00:08]} 3. c3 {[%emt 0:01:51]} d5 {[%emt 0:00:10]} 4. exd5 {[%emt 0:01:12]} Qxd5 {[%emt 0:00:10]} 5. d4 {[%emt 0:01:38]} Nf6 {[%emt 0:00:20]} 6. Bb5+ {[%emt 0:05:07]} Bd7 {[%emt 0:03:04]} 7. Bxd7+ {[%emt 0:00:48]} Nbxd7 {[%emt 0:04:45]} 8. O-O {[%emt 0:00:39]} cxd4 {[%emt 0:08:34]} 9. cxd4 {[%emt 0:07:00]} Be7 {[%emt 0:04:53]} 10. Nc3 {[%emt 0:01:33]} Qa5 {[%emt 0:01:10]} 11. Re1 {[%emt 0:07:28]} Nb6 {[%emt 0:08:44]} 12. Qb3 {[%emt 0:07:20]} O-O {[%emt 0:02:53]} 13. Bd2 {[%emt 0:08:27]} Qa6 {[%emt 0:08:49]} 14. Ne5 {[%emt 0:05:12]} Nbd5 {[%emt 0:03:05]} 15. Na4 {[%emt 0:08:43]} b6 {[%emt 0:06:07]} 16. Rac1 {[%emt 0:01:56]} Rac8 {[%emt 0:00:39]} 17. a3 {[%emt 0:03:06]} Rxc1 {[%emt 0:03:46]} 18. Bxc1 {[%emt 0:01:47]} Rc8 {[%emt 0:01:07]} 19. Nc3 {[%emt 0:01:10]} Qb7 {[%emt 0:04:21]} 20. Bd2 {[%emt 0:03:00]} h6 {[%emt 0:04:47]} 21. Nxd5 {[%emt 0:05:27]} Qxd5 {[%emt 0:00:52]} 22. Qxd5 {[%emt 0:00:34]} Nxd5 {[%emt 0:00:13]} 23. Rc1 {[%emt 0:00:34]} Rxc1+ {[%emt 0:01:19]} 24. Bxc1 {[%emt 0:02:26]} a6 {[%emt 0:02:09]} 25. Kf1 {[%emt 0:01:48]} Bd6 {[%emt 0:03:33]} 26. Nd3 {[%emt 0:02:04]} h5 {[%emt 0:03:24]} 27. h3 {[%emt 0:04:09]} Kf8 {[%emt 0:03:40]} 28. Ke2 Ke7 {[%emt 0:00:31]} 29. Kf3 {[%emt 0:02:50]} f6 {[%emt 0:09:10]} 30. Nf4 {[%emt 0:03:05]} Bxf4 {[%emt 0:03:56]} 31. Bxf4 {[%emt 0:00:02]} b5 {[%emt 0:00:17]} 32. Bd2 {[%emt 0:03:02]} Kd6 33. g4 {[%emt 0:00:37]} hxg4+ {[%emt 0:01:46]} 34. hxg4 {[%emt 0:00:01]} g6 {[%emt 0:01:05]} 35. Bh6 {[%emt 0:01:27]} Kc6 {[%emt 0:02:44]} 36. Ke4 {[%emt 0:02:05]} Kd7 {[%emt 0:02:15]} 37. Bd2 {[%emt 0:01:09]} Kd6 {[%emt 0:00:47]} 38. b3 {[%emt 0:00:43]} f5+ {[%emt 0:00:24]} 39. gxf5 {[%emt 0:00:47]} exf5+ {[%emt 0:00:46]} 40. Kd3 {[%emt 0:01:09]} Nf6 {[%emt 0:01:07]} 41. f4 {[%emt 0:37:43]} Ne4 {[%emt 0:30:53]} 42. Be1 {[%emt 0:00:51]} g5 {[%emt 0:00:00]} 43. fxg5 {[%emt 0:00:00]} Nxg5 {[%emt 0:00:00]} 44. Bg3+ {[%emt 0:00:00]} Kd5 {[%emt 0:00:00]} 45. Be5 {[%emt 0:00:00]} Ne6 {[%emt 0:00:00]} 46. Bf6 {[%emt 0:00:00]} f4 {[%emt 0:00:00]} 47. a4 {[%emt 0:00:00]} f3 {[%emt 0:00:00]} 48. axb5 {[%emt 0:00:00]} axb5 {[%emt 0:00:00]} 49. Bh8 {[%emt 0:00:00]} f2 {[%emt 0:00:00]} 50. Ke2 {[%emt 0:00:00]} Nxd4+ {[%emt 0:00:00]} 51. Kxf2 {[%emt 0:00:00]} Nxb3 {[%emt 0:00:00]} 52. Ke2 {[%emt 0:00:00]} Kc4 {[%emt 0:00:00]} 53. Bg7 {[%emt 0:00:00]} Nd4+ {[%emt 0:00:00]} 54. Bxd4 {[%emt 0:00:00]} Kxd4 {[%emt 0:00:00]} 55. Kd2 {[%emt 0:00:00]} b4 1/2-1/2

[Event "WSTCC-65 2024"]
[Site "Krakow"]
[Date "2024.07.06"]
[Round "5.11"]
[White "Oehlerich, Per"]
[Black "Pietrzak, Janusz"]
[Result "1-0"]
[ECO "B00"]
[WhiteElo "1959"]
[BlackElo "1919"]
[Annotator "NA RC"]
[PlyCount "61"]
[EventDate "2024.07.01"]
[EventType "team-tourn"]
[EventCountry "POL"]
[SourceTitle "playchess.com"]
[Source "ChessBase"]
[SourceQuality "1"]
[TimeControl "40/5400+30:1800+30"]

1. e4 {[%emt 0:00:09]} b6 {[%emt 0:00:53]} 2. d4 {[%emt 0:00:55]} Bb7 {[%emt 0:00:07]} 3. Bd3 {[%emt 0:01:03]} e6 {[%emt 0:00:43]} 4. Ne2 {[%emt 0:03:55]} c5 {[%emt 0:01:37]} 5. c3 {[%emt 0:01:41]} d5 {[%emt 0:00:08]} 6. e5 {[%emt 0:01:32]} Nc6 {[%emt 0:00:12]} 7. O-O {[%emt 0:04:55]} Be7 {[%emt 0:06:07]} 8. Nd2 {[%emt 0:04:41]} Nh6 {[%emt 0:08:47]} 9. Nf3 {[%emt 0:07:33]} Nf5 {[%emt 0:03:19]} 10. Bxf5 {[%emt 0:08:42]} exf5 11. a3 {[%emt 0:04:47]} h5 {[%emt 0:01:41]} 12. b4 {[%emt 0:02:57]} cxb4 {[%emt 0:05:11]} 13. axb4 {[%emt 0:02:00]} g5 {[%emt 0:00:51]} 14. Qd3 {[%emt 0:06:29]} f4 {[%emt 0:02:39]} 15. b5 {[%emt 0:01:47]} Na5 {[%emt 0:01:02]} 16. e6 {[%emt 0:01:00]} Nc4 {[%emt 0:02:16]} 17. exf7+ {[%emt 0:01:44]} Kf8 {[%emt 0:01:01]} 18. Bxf4 {[%emt 0:03:41]} gxf4 {[%emt 0:02:01]} 19. Nxf4 {[%emt 0:00:10]} Rh6 {[%emt 0:00:29]} 20. Rfe1 {[%emt 0:10:41]} Qd6 {[%emt 0:02:40]} 21. Ne5 {[%emt 0:01:38]} Nxe5 {[%emt 0:07:52]} 22. dxe5 {[%emt 0:01:43]} Qc7 {[%emt 0:08:21]} 23. Qg3 {[%emt 0:05:58]} Kxf7 {[%emt 0:01:21]} 24. e6+ {[%emt 0:00:35]} Ke8 {[%emt 0:01:29]} 25. Qg8+ {[%emt 0:00:37]} Bf8 {[%emt 0:01:32]} 26. e7 {[%emt 0:00:33]} Qxe7 {[%emt 0:04:27]} 27. Rxe7+ {[%emt 0:01:02]} Kxe7 {[%emt 0:00:04]} 28. Ng6+ {[%emt 0:05:41]} Kd6 {[%emt 0:01:00]} 29. Nxf8 {[%emt 0:00:42]} Rf6 {[%emt 0:00:30]} 30. Qg3+ {[%emt 0:00:18]} Ke7 {[%emt 0:02:42]} 31. Qg7+ {[%emt 0:00:31]} 1-0

[Event "WSTCC-65 2024"]
[Site "Krakow"]
[Date "2024.07.06"]
[Round "5.12"]
[White "Petran, Peter"]
[Black "Vinke, Dietmar"]
[Result "1/2-1/2"]
[ECO "A06"]
[WhiteElo "2195"]
[BlackElo "2097"]
[Annotator "RC"]
[PlyCount "102"]
[EventDate "2024.07.01"]
[EventType "team-tourn"]
[EventCountry "POL"]
[SourceTitle "playchess.com"]
[Source "ChessBase"]
[SourceQuality "1"]
[TimeControl "40/5400+30:1800+30"]

1. g3 {[%emt 0:00:03]} d5 {[%emt 0:00:55]} 2. Nf3 {[%emt 0:00:08]} g6 {[%emt 0:00:17]} 3. Bg2 {[%emt 0:03:07]} Bg7 {[%emt 0:01:42]} 4. c4 {[%emt 0:00:09]} d4 {[%emt 0:00:42]} 5. d3 {[%emt 0:00:19]} e5 {[%emt 0:10:43]} 6. O-O {[%emt 0:00:17]} Ne7 {[%emt 0:00:06]} 7. b4 {[%emt 0:04:14]} O-O {[%emt 0:07:58]} 8. Bb2 {[%emt 0:02:26]} c5 {[%emt 0:05:51]} 9. a3 {[%emt 0:02:42]} Na6 {[%emt 0:08:21]} 10. Qb3 {[%emt 0:04:45]} Qb6 {[%emt 0:09:10]} 11. Nbd2 {[%emt 0:01:28]} Bd7 {[%emt 0:10:10]} 12. Rfb1 {[%emt 0:07:42]} cxb4 {[%emt 0:11:00]} 13. axb4 {[%emt 0:00:18]} Nxb4 {[%emt 0:00:14]} 14. Bxd4 {[%emt 0:03:28]} exd4 {[%emt 0:00:43]} 15. Qxb4 {[%emt 0:00:07]} Qxb4 {[%emt 0:02:21]} 16. Rxb4 {[%emt 0:00:07]} Bc6 {[%emt 0:01:54]} 17. Nb3 {[%emt 0:02:15]} b6 {[%emt 0:00:32]} 18. Ra2 {[%emt 0:07:49]} Rfd8 {[%emt 0:01:25]} 19. Nfd2 {[%emt 0:03:48]} Rdb8 {[%emt 0:13:17]} 20. Bxc6 {[%emt 0:09:00]} Nxc6 {[%emt 0:00:04]} 21. Rba4 {[%emt 0:00:11]} Re8 {[%emt 0:04:22]} 22. Kf1 {[%emt 0:07:21]} Re7 {[%emt 0:01:39]} 23. Rb2 {[%emt 0:00:51]} Rd8 {[%emt 0:04:21]} 24. Nf3 {[%emt 0:01:13]} f5 {[%emt 0:00:31]} 25. h4 {[%emt 0:06:08]} h6 {[%emt 0:00:05]} 26. Nbd2 {[%emt 0:04:40]} Kf7 {[%emt 0:00:14]} 27. Rb5 {[%emt 0:00:50]} Rde8 {[%emt 0:01:23]} 28. h5 {[%emt 0:02:31]} Rxe2 {[%emt 0:02:04]} 29. hxg6+ {[%emt 0:00:11]} Kxg6 {[%emt 0:00:02]} 30. c5 {[%emt 0:02:10]} bxc5 {[%emt 0:01:09]} 31. Ra6 {[%emt 0:03:04]} R2e6 {[%emt 0:00:04]} 32. Rxc5 {[%emt 0:00:49]} Nb4 {[%emt 0:00:10]} 33. Nh4+ {[%emt 0:02:25]} Kh7 {[%emt 0:01:12]} 34. Rxa7 {[%emt 0:00:17]} Re1+ {[%emt 0:00:43]} 35. Kg2 {[%emt 0:00:03]} R1e7 {[%emt 0:00:02]} 36. Rcc7 {[%emt 0:09:59]} Bf6 {[%emt 0:00:02]} 37. Nxf5 {[%emt 0:06:39]} Rxc7 {[%emt 0:00:01]} 38. Rxc7+ {[%emt 0:00:07]} Kg6 {[%emt 0:00:05]} 39. Nd6 {[%emt 0:00:29]} Re7 {[%emt 0:01:20]} 40. Rxe7 {[%emt 0:02:31]} Bxe7 {[%emt 0:00:02]} 41. Nb5 {[%emt 0:30:12]} Nxd3 {[%emt 0:32:41]} 42. Nxd4 {[%emt 0:00:43]} Bc5 {[%emt 0:00:58]} 43. N2b3 {[%emt 0:00:12]} Bb6 {[%emt 0:00:00]} 44. f3 {[%emt 0:00:00]} Ne1+ {[%emt 0:00:00]} 45. Kf1 {[%emt 0:00:00]} Nxf3 {[%emt 0:00:00]} 46. Nxf3 {[%emt 0:00:00]} Bc7 {[%emt 0:00:00]} 47. Kg2 {[%emt 0:00:00]} Bxg3 {[%emt 0:00:00]} 48. Kxg3 {[%emt 0:00:00]} Kf5 {[%emt 0:00:00]} 49. Nc5 {[%emt 0:00:00]} h5 {[%emt 0:00:00]} 50. Nh4+ {[%emt 0:00:00]} Ke5 {[%emt 0:00:00]} 51. Kf3 {[%emt 0:00:00]} Kd4 1/2-1/2

[Event "WSTCC-65 2024"]
[Site "Krakow"]
[Date "2024.07.06"]
[Round "5.12"]
[White "Dekan, Hans"]
[Black "Priedite, Ingrida"]
[Result "1/2-1/2"]
[ECO "B42"]
[WhiteElo "2083"]
[BlackElo "2044"]
[Annotator "NA RC"]
[PlyCount "45"]
[EventDate "2024.07.01"]
[EventType "team-tourn"]
[EventCountry "POL"]
[SourceTitle "playchess.com"]
[Source "ChessBase"]
[SourceQuality "1"]
[TimeControl "40/5400+30:1800+30"]

1. e4 {[%emt 0:00:04]} c5 {[%emt 0:00:11]} 2. Nf3 {[%emt 0:00:16]} a6 {[%emt 0:00:40]} 3. d4 {[%emt 0:00:31]} cxd4 {[%emt 0:00:14]} 4. Nxd4 {[%emt 0:00:08]} e6 {[%emt 0:00:25]} 5. Bd3 {[%emt 0:00:58]} Nf6 {[%emt 0:01:13]} 6. O-O {[%emt 0:01:09]} Qc7 {[%emt 0:03:40]} 7. Nc3 {[%emt 0:01:35]} Nc6 {[%emt 0:01:04]} 8. Nxc6 {[%emt 0:01:15]} bxc6 {[%emt 0:01:17]} 9. Qe2 {[%emt 0:08:27]} d6 {[%emt 0:19:19]} 10. Bg5 {[%emt 0:08:38]} Be7 {[%emt 0:01:05]} 11. Rab1 {[%emt 0:02:31]} h6 {[%emt 0:08:08]} 12. Bh4 {[%emt 0:03:29]} O-O {[%emt 0:01:12]} 13. f4 {[%emt 0:02:58]} d5 {[%emt 0:05:49]} 14. Bxf6 {[%emt 0:03:25]} Bxf6 {[%emt 0:00:23]} 15. e5 {[%emt 0:01:23]} Be7 {[%emt 0:00:11]} 16. Nd1 {[%emt 0:15:42]} f6 {[%emt 0:07:02]} 17. Rf3 {[%emt 0:11:05]} fxe5 {[%emt 0:02:23]} 18. fxe5 {[%emt 0:00:12]} Rxf3 {[%emt 0:01:14]} 19. gxf3 {[%emt 0:00:08]} Bc5+ {[%emt 0:04:15]} 20. Kg2 {[%emt 0:03:57]} a5 {[%emt 0:02:58]} 21. c3 {[%emt 0:01:19]} Qf7 {[%emt 0:02:12]} 22. Nf2 {[%emt 0:03:40]} Ba6 {[%emt 0:10:01]} 23. Rf1 1/2-1/2

[Event "WSTCC-65 2024"]
[Site "Krakow"]
[Date "2024.07.06"]
[Round "5.12"]
[White "Kot, Jerzy"]
[Black "Andresen, Hans Jorn"]
[Result "1-0"]
[ECO "A39"]
[WhiteElo "2019"]
[BlackElo "1953"]
[Annotator "NA RC"]
[PlyCount "27"]
[EventDate "2024.07.01"]
[EventType "team-tourn"]
[EventCountry "POL"]
[SourceTitle "playchess.com"]
[Source "ChessBase"]
[SourceQuality "1"]
[TimeControl "40/5400+30:1800+30"]

1. c4 c5 2. Nf3 Nf6 3. g3 {[%emt 0:00:19]} g6 {[%emt 0:01:21]} 4. Nc3 {[%emt 0:00:36]} Nc6 {[%emt 0:00:38]} 5. Bg2 {[%emt 0:00:15]} Bg7 {[%emt 0:00:49]} 6. O-O {[%emt 0:00:11]} O-O 7. d4 cxd4 {[%emt 0:07:36]} 8. Nxd4 {[%emt 0:00:39]} Nxd4 {[%emt 0:01:07]} 9. Qxd4 {[%emt 0:00:09]} d6 {[%emt 0:00:40]} 10. b3 {[%emt 0:04:29]} Qa5 {[%emt 0:04:15]} 11. Bb2 {[%emt 0:03:10]} Qh5 {[%emt 0:04:39]} 12. Nd5 {[%emt 0:01:27]} Bh3 {[%emt 0:18:27]} 13. Nxe7+ {[%emt 0:02:21]} Kh8 {[%emt 0:03:04]} 14. Qxf6 {[%emt 0:00:43]} 1-0

[Event "WSTCC-65 2024"]
[Site "Krakow"]
[Date "2024.07.06"]
[Round "5.13"]
[White "Maier, Christian"]
[Black "Quinn, John M"]
[Result "1/2-1/2"]
[ECO "B40"]
[WhiteElo "2252"]
[BlackElo "2073"]
[Annotator "TA"]
[PlyCount "95"]
[EventDate "2024.07.01"]
[EventType "team-tourn"]
[EventCountry "POL"]
[SourceTitle "playchess.com"]
[Source "ChessBase"]
[SourceQuality "1"]
[TimeControl "40/5400+30:1800+30"]

{[%evp 17,95,9,17,2,0,14,16,10,0,0,0,-15,-15,-20,-18,-63,-20,-28,-27,-23,0,0,13,-4,25,0,26,23,37,25,36,14,46,15,34,15,42,0,57,42,100,0,0,0,131,0,0,0,27,0,0,0,0,0,0,0,0,0,0,0,0,0,0,0,0,0,0,0,8,0,0,0,0,0,0,0,0,0,0,0]} 1. e4 {[%emt 0:00:39]} c5 {[%emt 0:00:06]} 2. Nf3 {[%emt 0:00:13]} e6 {[%emt 0:00:06]} 3. d3 {[%emt 0:00:30]} d5 {[%emt 0:01:48]} 4. Nbd2 {[%emt 0:00:20]} Nc6 {[%emt 0:01:03]} 5. g3 {[%emt 0:00:12]} Bd6 {[%emt 0:02:06]} 6. Bg2 {[%emt 0:00:14]} Nge7 {[%emt 0:00:07]} 7. O-O {[%emt 0:00:18]} O-O {[%emt 0:04:01]} 8. Re1 {[%emt 0:00:39]} Qc7 {[%emt 0:01:48]} 9. c3 {[%emt 0:11:21]} d4 {[%emt 0:13:34]} 10. Nc4 {[%emt 0:07:03] [#] e5 would now be deadly.} e5 {[%emt 0:04:06]} 11. cxd4 {[%emt 0:02:11]} cxd4 {[%emt 0:00:31]} 12. Nxd6 {[%emt 0:00:09]} Qxd6 {[%emt 0:00:06]} 13. Bd2 {[%emt 0:00:15]} f6 {[%emt 0:07:03]} 14. Qb1 {[%emt 0:01:16]} a5 {[%emt 0:04:28]} 15. b3 {[%emt 0:01:34]} Be6 {[%emt 0:13:13]} 16. a3 {[%emt 0:00:26]} b5 {[%emt 0:05:18]} 17. b4 {[%emt 0:02:35]} axb4 {[%emt 0:04:03]} 18. axb4 {[%emt 0:01:03]} Rfc8 {[%emt 0:01:20]} 19. Qb2 {[%emt 0:01:59]} Nd8 {[%emt 0:04:51]} 20. Bf1 {[%emt 0:04:48][%cal Bg2f1,Bf1e2,Be2d1][%mdl 32]} Nb7 {[%emt 0:03:01]} 21. Be2 {[%emt 0:00:19]} Qd8 {[%emt 0:01:25]} 22. Rec1 {[%emt 0:02:03]} Rxc1+ {[%emt 0:02:17]} 23. Qxc1 {[%emt 0:00:12]} Rc8 {[%emt 0:05:28]} 24. Qb2 {[%emt 0:00:19]} Ra8 {[%emt 0:01:00]} 25. Bd1 {[%emt 0:00:36]} Kh8 {[%emt 0:01:45]} 26. Kg2 {[%emt 0:01:56]} Qc8 {[%emt 0:00:43]} 27. h4 {[%emt 0:01:21]} h5 {[%emt 0:00:44]} (27... Bh3+ $11 28. Kh2 Bg4) 28. Nh2 {[%emt 0:00:44]} g6 {[%emt 0:00:24]} ({Better is} 28... Bh3+ $14 29. Kg1 Rxa1 30. Qxa1 Qe8) 29. Rc1 {[%emt 0:01:28]} Qd7 {[%emt 0:00:32]} 30. Ra1 {[%emt 0:03:18] Prevents Ra2.} Qc8 {[%emt 0:03:08] [#]} 31. Rc1 {[%emt 0:10:50]} (31. f4 $1 $16 {[%cal Rf4e5]}) 31... Qd7 $11 {[%emt 0:00:01]} 32. Bb3 {[%emt 0:00:12] Prevents Ra2} Nc6 {[%emt 0:03:13]} 33. Qc2 {[%emt 0:02:39] Hoping for Bxe6.} Ra6 {[%emt 0:00:24] The position is equal.} 34. Nf3 {[%emt 0:04:49]} Kg7 {[%emt 0:00:12]} 35. Qb2 {[%emt 0:00:22]} Ra8 {[%emt 0:00:33]} 36. Bxe6 {[%emt 0:00:45]} Qxe6 {[%emt 0:00:04]} 37. Ra1 {[%emt 0:04:37]} Rxa1 {[%emt 0:03:06]} 38. Qxa1 {[%emt 0:00:05]} Nd6 {[%emt 0:00:06]} 39. Qa8 {[%emt 0:00:35]} Qc8 {[%emt 0:00:23]} 40. Qa2 {[%emt 0:00:25]} Qg8 {[%emt 0:00:20]} 41. Qc2 {[%emt 0:30:26]} Nd8 {[%emt 0:39:16]} 42. Nh2 {[%emt 0:10:02]} N8f7 {[%emt 0:00:00]} 43. Qc6 {[%emt 0:00:00]} Qc8 {[%emt 0:00:00]} 44. Qxc8 {[%emt 0:00:00]} Nxc8 {[%emt 0:00:00]} 45. f4 {[%emt 0:00:00]} Ne7 {[%emt 0:00:00]} 46. Nf3 {[%emt 0:00:00]} Nc6 {[%emt 0:00:00]} 47. Kf1 {[%emt 0:00:00]} Kf8 {[%emt 0:00:00]} 48. Ke2 {[%emt 0:00:00] Weighted Error Value: White=0.15 (very precise) /Black=0.11 (very precise) .  Mistake:       	White=1     	Black=2      Inaccurate:     	White=4     	Black=6      OK:         	White=12    	Black=12     Best:        	---       	Black=1} 1/2-1/2

[Event "WSTCC-65 2024"]
[Site "Krakow"]
[Date "2024.07.06"]
[Round "5.13"]
[White "Thuesen, Mogens"]
[Black "Gibbons, Robert"]
[Result "1-0"]
[ECO "D70"]
[WhiteElo "2158"]
[BlackElo "1908"]
[Annotator "RC"]
[PlyCount "101"]
[EventDate "2024.07.01"]
[EventType "team-tourn"]
[EventCountry "POL"]
[SourceTitle "playchess.com"]
[Source "ChessBase"]
[SourceQuality "1"]
[TimeControl "40/5400+30:1800+30"]

1. d4 {[%emt 0:00:16]} d5 {[%emt 0:00:14]} 2. c4 {[%emt 0:00:23]} c6 {[%emt 0:00:21]} 3. Nf3 {[%emt 0:00:07]} Nf6 {[%emt 0:00:12]} 4. Nbd2 {[%emt 0:00:25]} e6 {[%emt 0:01:43]} 5. Qc2 {[%emt 0:00:45]} Be7 {[%emt 0:02:14]} 6. e4 {[%emt 0:01:46]} dxe4 {[%emt 0:01:25]} 7. Nxe4 {[%emt 0:00:08]} Nxe4 {[%emt 0:01:22]} 8. Qxe4 {[%emt 0:00:09]} Nd7 {[%emt 0:04:15]} 9. Bd3 {[%emt 0:01:32]} Bb4+ {[%emt 0:00:41]} 10. Kf1 {[%emt 0:14:36]} Nf6 {[%emt 0:07:06]} 11. Qe2 {[%emt 0:00:14]} O-O {[%emt 0:02:26]} 12. Bg5 {[%emt 0:05:28]} Re8 {[%emt 0:06:28]} 13. Rd1 {[%emt 0:03:43]} Be7 {[%emt 0:01:24]} 14. h4 {[%emt 0:01:07]} h6 {[%emt 0:01:29]} 15. Bxf6 {[%emt 0:04:29]} gxf6 {[%emt 0:00:37]} 16. g4 {[%emt 0:10:02]} f5 {[%emt 0:10:37]} 17. gxf5 {[%emt 0:08:33]} exf5 18. Rg1+ Kh7 {[%emt 0:06:53]} 19. Qe5 {[%emt 0:16:50]} Bf6 {[%emt 0:04:05]} 20. Bxf5+ {[%emt 0:00:46]} Kh8 {[%emt 0:01:13]} 21. Qf4 {[%emt 0:00:56]} Bxf5 {[%emt 0:01:15]} 22. Qxf5 {[%emt 0:01:40]} Rg8 {[%emt 0:01:59]} 23. Rxg8+ {[%emt 0:08:35]} Kxg8 {[%emt 0:01:35]} 24. Qg4+ {[%emt 0:01:10]} Bg7 {[%emt 0:14:37]} 25. h5 {[%emt 0:03:34]} Qc8 {[%emt 0:02:47]} 26. Qxc8+ {[%emt 0:00:32]} Rxc8 {[%emt 0:00:02]} 27. b3 {[%emt 0:00:17]} Kf8 {[%emt 0:00:41]} 28. Ke2 {[%emt 0:00:19]} Ke7 {[%emt 0:00:16]} 29. Kd3 {[%emt 0:00:20]} Bf6 {[%emt 0:04:41]} 30. Ke4 {[%emt 0:02:21]} c5 {[%emt 0:09:38]} 31. d5 {[%emt 0:00:52]} Kd6 {[%emt 0:00:05]} 32. Kf5 {[%emt 0:00:14]} Bc3 {[%emt 0:00:41]} 33. Rd3 {[%emt 0:00:45]} Bb2 {[%emt 0:00:54]} 34. Nd2 {[%emt 0:00:24]} Bd4 {[%emt 0:01:17]} 35. Ne4+ {[%emt 0:03:11]} Kd7 {[%emt 0:00:48]} 36. f4 {[%emt 0:03:27]} a6 {[%emt 0:01:34]} 37. Nf6+ {[%emt 0:00:39]} Ke7 {[%emt 0:01:30]} 38. Ng4 {[%emt 0:00:22]} Bg7 {[%emt 0:00:04]} 39. Re3+ {[%emt 0:04:20]} Kd6 {[%emt 0:00:59]} 40. Ne5 {[%emt 0:00:29]} Rf8 {[%emt 0:00:08]} 41. Rg3 {[%emt 0:30:31]} Bh8 {[%emt 0:30:25]} 42. a4 {[%emt 0:03:57]} a5 {[%emt 0:00:31]} 43. Rg2 {[%emt 0:00:23]} Ke7 {[%emt 0:00:35]} 44. d6+ {[%emt 0:00:00]} Kd8 {[%emt 0:00:00]} 45. Ke4 {[%emt 0:00:00]} b6 {[%emt 0:00:00]} 46. Kd5 {[%emt 0:00:00]} Bxe5 {[%emt 0:00:00]} 47. fxe5 {[%emt 0:00:00]} f5 {[%emt 0:00:00]} 48. e6 {[%emt 0:00:00]} Rh8 {[%emt 0:00:00]} 49. Rf2 {[%emt 0:00:00]} Rg8 {[%emt 0:00:00]} 50. Rxf5 {[%emt 0:00:00]} Rg5 {[%emt 0:00:00]} 51. Rxg5 {[%emt 0:00:00]} 1-0

[Event "WSTCC-65 2024"]
[Site "Krakow"]
[Date "2024.07.06"]
[Round "5.13"]
[White "White, Alastair F"]
[Black "Fletcher, John"]
[Result "0-1"]
[ECO "D04"]
[WhiteElo "2022"]
[BlackElo "2007"]
[Annotator "NA RC"]
[PlyCount "61"]
[EventDate "2024.07.01"]
[EventType "team-tourn"]
[EventCountry "POL"]
[SourceTitle "playchess.com"]
[Source "ChessBase"]
[SourceQuality "1"]
[TimeControl "40/5400+30:1800+30"]

1. Nf3 {[%emt 0:00:10]} d5 {[%emt 0:00:11]} 2. d4 {[%emt 0:00:12]} Nf6 {[%emt 0:00:48]} 3. e3 {[%emt 0:00:26]} g6 {[%emt 0:05:03]} 4. Bd3 {[%emt 0:00:51]} Bg7 {[%emt 0:00:22]} 5. O-O {[%emt 0:00:37]} O-O {[%emt 0:00:32]} 6. Nbd2 {[%emt 0:02:08]} Nbd7 {[%emt 0:07:09]} 7. b3 {[%emt 0:01:53]} c5 {[%emt 0:09:33]} 8. Bb2 {[%emt 0:03:42]} cxd4 {[%emt 0:00:21]} 9. exd4 {[%emt 0:01:01]} b6 {[%emt 0:05:57]} 10. Re1 {[%emt 0:01:25]} Nb8 {[%emt 0:18:29]} 11. Qe2 {[%emt 0:08:35]} Re8 {[%emt 0:01:54]} 12. Ne5 {[%emt 0:01:06]} a6 {[%emt 0:11:54]} 13. Rac1 {[%emt 0:10:09]} Nfd7 {[%emt 0:07:30]} 14. Nxf7 {[%emt 0:17:55]} Kxf7 {[%emt 0:01:46]} 15. Qe6+ {[%emt 0:00:08]} Kf8 {[%emt 0:00:04]} 16. Qxd5 {[%emt 0:00:37]} Ra7 {[%emt 0:01:35]} 17. Bc4 {[%emt 0:00:15]} e6 {[%emt 0:01:37]} 18. Rxe6 {[%emt 0:00:19]} Bf6 {[%emt 0:06:55]} 19. Ba3+ {[%emt 0:04:45]} Kg7 {[%emt 0:04:34]} 20. Rce1 {[%emt 0:13:59]} Rxe6 {[%emt 0:00:53]} 21. Rxe6 {[%emt 0:02:28]} b5 {[%emt 0:01:47]} 22. Rxf6 {[%emt 0:07:13]} Qxf6 {[%emt 0:04:55]} 23. Qg8+ {[%emt 0:00:20]} Kh6 {[%emt 0:00:01]} 24. Ne4 {[%emt 0:00:47]} Qf4 {[%emt 0:01:38]} 25. g3 {[%emt 0:00:37]} Qxe4 {[%emt 0:00:37]} 26. Bc1+ {[%emt 0:00:13]} Kh5 {[%emt 0:00:08]} 27. Qxh7+ {[%emt 0:00:44]} Kg4 {[%emt 0:00:04]} 28. Qh4+ {[%emt 0:01:36]} Kf3 {[%emt 0:00:52]} 29. Bf1 {[%emt 0:00:51]} Qxh4 {[%emt 0:00:40]} 30. gxh4 {[%emt 0:00:24]} Nf6 {[%emt 0:01:25]} 31. h3 {[%emt 0:00:31]} 0-1